Workbook

Sheet Mittelhilfstabelle
A2: Stunde | B2: Wind | C2: Luftfeuchtigkeit | D2: Luftdruck | E2: Taupunkttemperatur | F2: Bewölkung | H2: Stunde | I2: Wind | J2: Luftfeuchtigkeit | K2: Luftdruck | L2: Taupunkttemperatur | M2: Bewölkung
A3: 00 | B3: 0 | C3: 79 | D3: 1014.7 | E3: 10.4 | F3: 6 | H3: 00 | I3: 0 | J3: 91 | K3: 1008.3 | L3: 14.2 | M3: 7
A4: 01 | B4: 0 | C4: 81 | D4: 1014.2 | E4: 10.2 | F4: 2 | H4: 01 | I4: 1 | J4: 91 | K4: 1007.7 | L4: 13.7 | M4: 7
A5: 02 | B5: 1 | C5: 81 | D5: 1013.7 | E5: 10.4 | F5: 7 | H5: 02 | I5: 1 | J5: 89 | K5: 1007.8 | L5: 14 | M5: 7
A6: 03 | B6: 1 | C6: 80 | D6: 1013.4 | E6: 10.5 | F6: 8 | H6: 03 | I6: 1 | J6: 94 | K6: 1006.5 | L6: 14.2 | M6: 8
A7: 04 | B7: 1 | C7: 84 | D7: 1013.6 | E7: 10.7 | F7: 8 | H7: 04 | I7: 1 | J7: 95 | K7: 1006.1 | L7: 14.3 | M7: 8
A8: 05 | B8: 0 | C8: 87 | D8: 1013.1 | E8: 11.4 | F8: 8 | H8: 05 | I8: 2 | J8: 86 | K8: 1005.4 | L8: 14.6 | M8: 8
A9: 06 | B9: 1 | C9: 86 | D9: 1014.2 | E9: 12 | F9: 8 | H9: 06 | I9: 2 | J9: 83 | K9: 1005.5 | L9: 14.4 | M9: 7
A10: 07 | B10: 1 | C10: 91 | D10: 1013.8 | E10: 13.2 | F10: 8 | H10: 07 | I10: 2 | J10: 78 | K10: 1005.4 | L10: 14.9 | M10: 7
A11: 08 | B11: 1 | C11: 92 | D11: 1013.4 | E11: 14.5 | F11: 7 | H11: 08 | I11: 2 | J11: 72 | K11: 1005.3 | L11: 15.2 | M11: 7
A12: 09 | B12: 1 | C12: 84 | D12: 1013.1 | E12: 15.1 | F12: 7 | H12: 09 | I12: 3 | J12: 68 | K12: 1005.6 | L12: 14.9 | M12: 7
A13: 10 | B13: 1 | C13: 75 | D13: 1013.1 | E13: 15.5 | F13: 7 | H13: 10 | I13: 3 | J13: 68 | K13: 1006 | L13: 14.3 | M13: 7
A14: 11 | B14: 2 | C14: 55 | D14: 1012.7 | E14: 13.4 | F14: 6 | H14: 11 | I14: 2 | J14: 84 | K14: 1006.3 | L14: 15.7 | M14: 8
A15: 12 | B15: 3 | C15: 51 | D15: 1012.4 | E15: 12.9 | F15: 6 | H15: 12 | I15: 1 | J15: 90 | K15: 1006.3 | L15: 16.3 | M15: 8
A16: 13 | B16: 2 | C16: 50 | D16: 1012.1 | E16: 12.7 | F16: 6 | H16: 13 | I16: 1 | J16: 93 | K16: 1006.5 | L16: 16.5 | M16: 8
A17: 14 | B17: 2 | C17: 59 | D17: 1011.6 | E17: 15.2 | F17: 6 | H17: 14 | I17: 2 | J17: 93 | K17: 1006.1 | L17: 17 | M17: 8
A18: 15 | B18: 2 | C18: 51 | D18: 1010.9 | E18: 14.8 | F18: 6 | H18: 15 | I18: 1 | J18: 90 | K18: 1006.2 | L18: 17 | M18: 8
A19: 16 | B19: 1 | C19: 53 | D19: 1010.2 | E19: 14 | F19: 7 | H19: 16 | I19: 2 | J19: 92 | K19: 1007.3 | L19: 14.3 | M19: 8
A20: 17 | B20: 1 | C20: 48 | D20: 1010 | E20: 12.3 | F20: 8 | H20: 17 | I20: 2 | J20: 96 | K20: 1007.6 | L20: 14.8 | M20: 8
A21: 18 | B21: 1 | C21: 61 | D21: 1010.8 | E21: 13.2 | F21: 8 | H21: 18 | I21: 1 | J21: 95 | K21: 1008 | L21: 13.9 | M21: 8
A22: 19 | B22: 1 | C22: 77 | D22: 1010.8 | E22: 14.9 | F22: 8 | H22: 19 | I22: 1 | J22: 95 | K22: 1008.5 | L22: 13.6 | M22: 8
A23: 20 | B23: 1 | C23: 84 | D23: 1010 | E23: 14.7 | F23: 8 | H23: 20 | I23: 0 | J23: 96 | K23: 1008.9 | L23: 13.5 | M23: 8
A24: 21 | B24: 1 | C24: 87 | D24: 1010 | E24: 15 | F24: 8 | H24: 21 | I24: 1 | J24: 95 | K24: 1009.2 | L24: 13 | M24: 7
A25: 22 | B25: 2 | C25: 87 | D25: 1008.9 | E25: 14.5 | F25: 8 | H25: 22 | I25: 1 | J25: 96 | K25: 1009.1 | L25: 12.8 | M25: 7
A26: 23 | B26: 1 | C26: 90 | D26: 1008.6 | E26: 14.6 | F26: 8 | H26: 23 | I26: 1 | J26: 96 | K26: 1009.8 | L26: 12.6 | M26: 7
A27: Mittel | B27: =ROUND(AVERAGE(B3:B26),1) -> 1.2 | C27: =ROUND(AVERAGE(C3:C26),1) -> 73.9 | D27: =ROUND(AVERAGE(D3:D26),1) -> 1012.1 | E27: =AVERAGE(E3:E26) -> 13.17083333 | F27: =ROUND(AVERAGE(F3:F26),1) -> 7 | H27: Mittel | I27: =ROUND(AVERAGE(I3:I26),1) -> 1.4 | J27: =ROUND(AVERAGE(J3:J26),1) -> 88.6 | K27: =ROUND(AVERAGE(K3:K26),1) -> 1007.1 | L27: =AVERAGE(L3:L26) -> 14.57083333 | M27: =ROUND(AVERAGE(M3:M26),1) -> 7.5
E29: 2014-06-28 | L29: 2014-06-29
A32: Stunde | B32: Wind | C32: Luftfeuchtigkeit | D32: Luftdruck | E32: Taupunkttemperatur | F32: Bewölkung | H32: Stunde | I32: Wind | J32: Luftfeuchtigkeit | K32: Luftdruck | L32: Taupunkttemperatur | M32: Bewölkung
A33: 00 | B33: 1 | C33: 96 | D33: 1010.2 | E33: 12.4 | F33: 8 | H33: 00 | I33: 2 | J33: 90 | K33: 1016.4 | L33: 10.3 | M33: 1
A34: 01 | B34: 1 | C34: 96 | D34: 1010.2 | E34: 12.5 | F34: 8 | H34: 01 | I34: 2 | J34: 91 | K34: 1016.7 | L34: 10.1 | M34: 1
A35: 02 | B35: 2 | C35: 95 | D35: 1010.3 | E35: 12.5 | F35: 8 | H35: 02 | I35: 2 | J35: 91 | K35: 1016.8 | L35: 10 | M35: 1
A36: 03 | B36: 1 | C36: 95 | D36: 1010.5 | E36: 12.5 | F36: 8 | H36: 03 | I36: 2 | J36: 91 | K36: 1017.1 | L36: 9.9 | M36: 4
A37: 04 | B37: 1 | C37: 94 | D37: 1010.7 | E37: 11.9 | F37: 8 | H37: 04 | I37: 2 | J37: 92 | K37: 1017.4 | L37: 10 | M37: 7
A38: 05 | B38: 2 | C38: 95 | D38: 1011 | E38: 11.6 | F38: 8 | H38: 05 | I38: 2 | J38: 90 | K38: 1018.1 | L38: 10.1 | M38: 7
A39: 06 | B39: 1 | C39: 92 | D39: 1011.2 | E39: 12.5 | F39: 7 | H39: 06
A40: 07 | B40: 1 | C40: 90 | D40: 1011.4 | E40: 12.3 | F40: 7 | H40: 07
A41: 08 | B41: 1 | C41: 83 | D41: 1011.9 | E41: 12.7 | F41: 6 | H41: 08
A42: 09 | B42: 1 | C42: 81 | D42: 1012 | E42: 12.7 | F42: 6 | H42: 09
A43: 10 | B43: 2 | C43: 87 | D43: 1012.4 | E43: 12.4 | F43: 7 | H43: 10
A44: 11 | B44: 2 | C44: 83 | D44: 1012.5 | E44: 12.6 | F44: 7 | H44: 11
A45: 12 | B45: 2 | C45: 79 | D45: 1012.3 | E45: 12.7 | F45: 7 | H45: 12
A46: 13 | B46: 2 | C46: 77 | D46: 1012.2 | E46: 12.8 | F46: 8 | H46: 13
A47: 14 | B47: 1 | C47: 89 | D47: 1012.6 | E47: 14.3 | F47: 7 | H47: 14
A48: 15 | B48: 2 | C48: 86 | D48: 1013 | E48: 13.9 | F48: 7 | H48: 15
A49: 16 | B49: 3 | C49: 83 | D49: 1013.2 | E49: 13.2 | F49: 7 | H49: 16
A50: 17 | B50: 1 | C50: 82 | D50: 1013.7 | E50: 12.1 | F50: 7 | H50: 17
A51: 18 | B51: 1 | C51: 82 | D51: 1013.8 | E51: 12.7 | F51: 7 | H51: 18
A52: 19 | B52: 2 | C52: 77 | D52: 1013.8 | E52: 12 | F52: 3 | H52: 19
A53: 20 | B53: 2 | C53: 78 | D53: 1014.4 | E53: 10.3 | F53: 3 | H53: 20
A54: 21 | B54: 2 | C54: 83 | D54: 1015.1 | E54: 10.6 | F54: 2 | H54: 21
A55: 22 | B55: 2 | C55: 87 | D55: 1015.8 | E55: 10.5 | F55: 1 | H55: 22
A56: 23 | B56: 2 | C56: 88 | D56: 1016.2 | E56: 10.7 | F56: 1 | H56: 23
A57: Mittel | B57: =ROUND(AVERAGE(B33:B56),1) -> 1.6 | C57: =ROUND(AVERAGE(C33:C56),1) -> 86.6 | D57: =ROUND(AVERAGE(D33:D56),1) -> 1012.5 | E57: =ROUND(AVERAGE(E33:E56),1) -> 12.3 | F57: =ROUND(AVERAGE(F33:F56),1) -> 6.2 | H57: Mittel | I57: =ROUND(AVERAGE(I33:I56),1) -> 2 | J57: =ROUND(AVERAGE(J33:J56),1) -> 90.8 | K57: =ROUND(AVERAGE(K33:K56),1) -> 1017.1 | L57: =ROUND(AVERAGE(L33:L56),1) -> 10.1 | M57: =ROUND(AVERAGE(M33:M56),1) -> 3.5
E59: 2014-06-30 | L59: 2014-07-01

Sheet Kurztabelle
A2: Wetterwarte: Köttewitz | L2: Monat: | M2: Juni | R2: Jahr: | U2: 2014
A4: Dat. | B4: TTT | C4: TxTx | D4: TnTn | E4: Tg | F4: Umin. | G4: UU | H4: NN | I4: RRRR | J4: Art | L4: sss | M4: PPPP | N4: eee | O4: fff | R4: Tage mit | V4: fk | W4: Summe
J5: * | O5: Bft | P5: SS | Q5: Art ( D ) | R5: RR | S5: Ge | T5: Bf6 | U5: Bf8 | V5: Bft | W5: Gewitter
A6: 01. | B6: 14.2 | C6: 20.7 | D6: 8.9 | E6: 8.3 | F6: 35 | G6: 65 | H6: 3.5 | I6: . | L6: 10.3 | M6: 1019.6 | N6: 7.2 | O6: 2 | V6: 4 | AA6: max >=30,0°C | AB6: max >=25,0°C | AC6: max <0,0°C | AE6: RR >=0,1 mm | AF6: RR >=1,0 mm | AG6: RR >=3,0 mm | AH6: RR >=10,0 mm
A7: 02. | B7: 14.2 | C7: 20.4 | D7: 6.3 | E7: 5.6 | F7: 45 | G7: 69 | H7: 4.3 | I7: . | L7: 9.7 | M7: 1018.5 | N7: 8.2 | O7: 2 | V7: 4 | AA7: =COUNTIF(C6:C15,">=30") -> 3 | AB7: =COUNTIF(C6:C15,">=25") -> 4 | AC7: =COUNTIF(C6:C15,"<0") -> 0 | AE7: =COUNTIF(I6:I15,">=0,1") -> 1 | AF7: =COUNTIF(I6:I15,">=1") -> 0 | AG7: =COUNTIF(I6:I15,">=3") -> 0 | AH7: =COUNTIF(I6:I15,">=10") -> 0
A8: 03. | B8: 15.9 | C8: 20.7 | D8: 10.8 | E8: 10.6 | F8: 35 | G8: 65 | H8: 6.1 | I8: . | L8: 12.8 | M8: 1014.9 | N8: 8.7 | O8: 1 | V8: 4 | AA8: =COUNTIF(C18:C27,">=30") -> 0 | AB8: =COUNTIF(C18:C27,">=25") -> 1 | AC8: =COUNTIF(C18:C27,"<0") -> 0 | AE8: =COUNTIF(I18:I27,">=0,1") -> 4 | AF8: =COUNTIF(I18:I27,">=1") -> 2 | AG8: =COUNTIF(I18:I27,">=3") -> 1 | AH8: =COUNTIF(I18:I27,">=10") -> 0
A9: 04. | B9: 16.9 | C9: 23.9 | D9: 9.9 | E9: 9.4 | F9: 44 | G9: 69 | H9: 5.4 | I9: 0.2 | J9: R | L9: 8.9 | M9: 1010 | N9: 10.9 | O9: 1 | R9: 1 | V9: 5 | AA9: =COUNTIF(C30:C39,">=30") -> 0 | AB9: =COUNTIF(C30:C39,">=25") -> 1 | AC9: =COUNTIF(C30:C39,"<0") -> 0 | AE9: =COUNTIF(I30:I39,">=0,1") -> 8 | AF9: =COUNTIF(I30:I39,">=1") -> 4 | AG9: =COUNTIF(I30:I39,">=3") -> 2 | AH9: =COUNTIF(I30:I39,">=10") -> 1
A10: 05. | B10: 16.6 | C10: 20.6 | D10: 10.2 | E10: 8.9 | F10: 30 | G10: 64 | H10: 6.1 | I10: . | L10: 6 | M10: 1013 | N10: 9.1 | O10: 1 | V10: 5
A11: 06. | B11: 17.1 | C11: 24.1 | D11: 7.6 | E11: 6.7 | F11: 39 | G11: 65 | H11: 1.6 | I11: . | L11: 12 | M11: 1018.7 | N11: 9.7 | O11: 1 | V11: 4 | AA11: min <0,0°C | AB11: min <0-10,0°C | AE11: rel.Lf. 14h >=70% | AG11: rel.Lf. 14h <=40%
A12: 07. | B12: 21.5 | C12: 28.9 | D12: 12.2 | E12: 10.6 | F12: 36 | G12: 59 | H12: 2.5 | I12: . | L12: 14.4 | M12: 1017.2 | N12: 12.7 | O12: 1 | V12: 4 | AA12: =COUNTIF(D6:D15,"<0") -> 0 | AB12: =COUNTIF(D6:D15,"<=-10") -> 0 | AE12: =COUNTIF(F6:F15,">=70") -> 0 | AG12: =COUNTIF(F6:F15,"<=40") -> 8
A13: 08. | B13: 24.4 | C13: 32.2 | D13: 16.3 | E13: 13.9 | F13: 31 | G13: 59 | H13: 2 | I13: . | L13: 14.5 | M13: 1018.5 | N13: 15.5 | O13: 1 | V13: 4 | AA13: =COUNTIF(D18:D27,"<0") -> 0 | AB13: =COUNTIF(D18:D27,"<=-10") -> 0 | AE13: =COUNTIF(F18:F27,">=70") -> 0 | AG13: =COUNTIF(F18:F27,"<=40") -> 1
A14: 09. | B14: 24.9 | C14: 32.6 | D14: 17 | E14: 15.6 | F14: 33 | G14: 61 | H14: 0.5 | I14: . | L14: 14.5 | M14: 1018 | N14: 16.3 | O14: 1 | V14: 4 | AA14: =COUNTIF(D30:D39,"<0") -> 0 | AB14: =COUNTIF(D30:D39,"<=-10") -> 0 | AE14: =COUNTIF(F30:F39,">=70") -> 1 | AG14: =COUNTIF(F30:F39,"<=40") -> 0
A15: 10. | B15: 24.5 | C15: 32.1 | D15: 16.9 | E15: 15 | F15: 39 | G15: 67 | H15: 4.5 | I15: . | L15: 14.4 | M15: 1017.7 | N15: 17.8 | O15: 1 | V15: 3
A16: Su | B16: =SUM(B6:B15) -> 190.2 | C16: =SUM(C6:C15) -> 256.2 | D16: 116.1 | E16: 104.6 | F16: XXX | G16: XXX | H16: =SUM(H6:H15) -> 36.5 | I16: =SUM(I6:I15) -> 0.2 | J16: XX | L16: =SUM(L6:L15) -> 117.5 | M16: =SUM(M6:M15) -> 10166.1 | N16: 116.1 | O16: 12 | P16: =SUM(P6:P15) -> 0 | Q16: X | R16: =SUM(R6:R15) -> 1 | S16: =SUM(S6:S15) -> 0 | T16: 0 | U16: 0 | V16: XXX | AA16: ohne Sonne | AB16: Son. 0,1-0,9 | AC16: Son. >=10,0 | AE16: Sch. >=1 cm | AF16: Sch. >=3 cm | AG16: Sch. >=10 cm
A17: Mi | B17: =AVERAGE(B6:B15) -> 19.02 | C17: =AVERAGE(C6:C15) -> 25.62 | D17: 11.61 | E17: 10.46 | F17: XXX | G17: 64.3 | H17: 3.65 | I17: XXX | J17: XX | L17: =L16/10 -> 11.75 | M17: =AVERAGE(M6:M15) -> 1016.61 | N17: =AVERAGE(N6:N15) -> 11.61 | O17: 1.2 | P17: =ROUND(AVERAGE(P6:P15),1) ->  | Q17: X | R17: XX | S17: XX | T17: XX | U17: XX | V17: =AVERAGE(V6:V15) -> 4.1 | AA17: =COUNTIF(L6:L15,".") -> 0 | AB17: =COUNTIF(L6:L15,"<1") -> 0 | AC17: =COUNTIF(L6:L15,">=10") -> 7 | AE17: =COUNTIF(P6:P15,">=1") -> 0 | AF17: =COUNTIF(P6:P15,">=3") -> 0 | AG17: =COUNTIF(P6:P15,">=10") -> 0
A18: 11. | B18: 22.5 | C18: 29.6 | D18: 17.9 | E18: 17.2 | F18: 62 | G18: 80 | H18: 6.2 | I18: 0.4 | J18: R | L18: 9 | M18: 1020.7 | N18: 18.9 | O18: 2 | R18: 1 | S18: 1 | V18: 5 | AA18: =COUNTIF(L18:L27,".") -> 0 | AB18: =COUNTIF(L18:L27,"<1") -> 0 | AC18: =COUNTIF(L18:L27,">=10") -> 1 | AE18: =COUNTIF(P18:P27,">=1") -> 0 | AF18: =COUNTIF(P18:P27,">=3") -> 0 | AG18: =COUNTIF(P18:P27,">=10") -> 0
A19: 12. | B19: 19.4 | C19: 23.6 | D19: 13.5 | E19: 12.6 | F19: 42 | G19: 69 | H19: 4.1 | I19: . | L19: 9.8 | M19: 1023.6 | N19: 13.1 | O19: 2 | V19: 5 | AA19: =COUNTIF(L30:L39,".") -> 0 | AB19: =COUNTIF(L30:L39,"<1") -> 3 | AC19: =COUNTIF(L30:L39,">=10") -> 0 | AE19: =COUNTIF(P30:P39,">=1") -> 0 | AF19: =COUNTIF(P30:P39,">=3") -> 0 | AG19: =COUNTIF(P30:P39,">=10") -> 0
A20: 13. | B20: 15.7 | C20: 21.1 | D20: 11.3 | E20: 10.6 | F20: 49 | G20: 73 | H20: 5.1 | I20: 0.3 | J20: R | L20: 4.9 | M20: 1018.7 | N20: 10.6 | O20: 2 | R20: 1 | V20: 5
A21: 14. | B21: 13.8 | C21: 18.4 | D21: 12.1 | E21: 11.7 | F21: 65 | G21: 83 | H21: 6.7 | I21: 4.2 | J21: R | L21: 2.6 | M21: 1016.8 | N21: 10.9 | O21: 2 | R21: 1 | V21: 5 | AA21: Max TT | AB21: Max TxTx | AC21: Min TgTg | AE21: Max RR
A22: 15. | B22: 14.5 | C22: 18.8 | D22: 9.8 | E22: 8.9 | F22: 50 | G22: 74 | H22: 4.5 | I22: . | L22: 6.2 | M22: 1020.6 | N22: 9.6 | O22: 1 | V22: 3 | AA22: =MAX(B6:B15,B18:B27,B30:B39) -> 24.9 | AB22: =MAX(C6:C15,C18:C27,C30:C39) -> 32.6 | AC22: =MIN(E6:E15,E18:E27,E30:E39) -> 5.6 | AE22: =MAX(I6:I15,I18:I27,I30:I39) -> 15
A23: 16. | B23: 15.6 | C23: 21.9 | D23: 7.2 | E23: 6.7 | F23: 41 | G23: 69 | H23: 4 | I23: . | L23: 7.2 | M23: 1018.7 | N23: 9.2 | O23: 1 | V23: 4 | AA23: Min TT | AB23: Min TnTn | AC23: Min U14 | AE23: Max SS
A24: 17. | B24: 16 | C24: 20.9 | D24: 11.3 | E24: 11.1 | F24: 49 | G24: 73 | H24: 5.9 | I24: . | L24: 5 | M24: 1018.9 | N24: 10.9 | O24: 1 | V24: 3 | AA24: =MIN(B6:B15,B18:B27,B30:B39) -> 12.4 | AB24: =MIN(D6:D15,D18:D27,D30:D39) -> 6.3 | AC24: =MIN(F6:F15,F18:F27,F30:F39) -> 30 | AE24: =MAX(P6:P15,P18:P27,P30:P39) -> 0
A25: 18. | B25: 17.7 | C25: 24.3 | D25: 9.2 | E25: 8.3 | F25: 30 | G25: 63 | H25: 3.6 | I25: . | L25: 14.2 | M25: 1018.6 | N25: 9.5 | O25: 1 | V25: 4
A26: 19. | B26: 15.3 | C26: 17.8 | D26: 12.7 | E26: 11.7 | F26: 56 | G26: 75 | H26: 7.1 | I26: . | L26: 2.7 | M26: 1015.3 | N26: 10.8 | O26: 2 | V26: 5
A27: 20. | B27: 13.9 | C27: 17.5 | D27: 12.1 | E27: 11.7 | F27: 57 | G27: 76 | H27: 7 | I27: 1.4 | J27: R | L27: 2.7 | M27: 1013.6 | N27: 9.7 | O27: 2 | R27: 1 | V27: 5
A28: Su | B28: =SUM(B18:B27) -> 164.4 | C28: =SUM(C18:C27) -> 213.9 | D28: 117.1 | E28: 110.5 | F28: XXX | G28: XXX | H28: =SUM(H18:H27) -> 54.2 | I28: =SUM(I18:I27) -> 6.3 | J28: XX | L28: =SUM(L18:L27) -> 64.3 | M28: =SUM(M18:M27) -> 10185.5 | N28: 113.2 | O28: 16 | P28: =SUM(P18:P27) -> 0 | Q28: X | R28: =SUM(R18:R27) -> 4 | S28: =SUM(S18:S27) -> 1 | T28: 0 | U28: 0 | V28: XXX
A29: Mi | B29: =AVERAGE(B18:B27) -> 16.44 | C29: =AVERAGE(C18:C27) -> 21.39 | D29: 11.71 | E29: 11.05 | F29: 50.1 | G29: 73.5 | H29: 5.42 | I29: XXX | J29: XX | L29: =L28/10 -> 6.43 | M29: =AVERAGE(M18:M27) -> 1018.55 | N29: =AVERAGE(N18:N27) -> 11.32 | O29: 1.6 | P29: =ROUND(AVERAGE(P18:P27),1) ->  | Q29: X | R29: XX | S29: XX | T29: XX | U29: XX | V29: =AVERAGE(V18:V27) -> 4.4
A30: 21. | B30: 13.9 | C30: 16.3 | D30: 11.6 | E30: 11.1 | F30: 59 | G30: 71 | H30: 7 | I30: 0.5 | J30: R | L30: 0.5 | M30: 1016.1 | N30: 8.7 | O30: 2 | R30: 1 | V30: 5
A31: 22. | B31: 15.1 | C31: 19 | D31: 11.9 | E31: 11.7 | F31: 51 | G31: 70 | H31: 6.2 | I31: . | L31: 1.6 | M31: 1017.5 | N31: 9.4 | O31: 2 | V31: 5
A32: 23. | B32: 14.9 | C32: 19.8 | D32: 10.2 | E32: 9.4 | F32: 43 | G32: 64 | H32: 5 | I32: . | L32: 6.5 | M32: 1019.9 | N32: 7.8 | O32: 2 | V32: 4
A33: 24. | B33: 15.2 | C33: 21.3 | D33: 9.6 | E33: 8.3 | F33: 46 | G33: 69 | H33: 4.9 | I33: 0.1 | J33: R | L33: 8.2 | M33: 1016.3 | N33: 9.4 | O33: 1 | R33: 1 | V33: 4
A34: 25. | B34: 12.4 | C34: 15.7 | D34: 11.3 | E34: 11.7 | F34: 83 | G34: 91 | H34: 7.5 | I34: 15 | J34: R | L34: 0.5 | M34: 1011.8 | N34: 11 | O34: 1 | R34: 1 | S34: 1 | V34: 4
A35: 26. | B35: 13.3 | C35: 20.3 | D35: 9.3 | E35: 8.9 | F35: 49 | G35: 86 | H35: 6.8 | I35: 0.4 | J35: R | L35: 2.3 | M35: 1016.2 | N35: 10.7 | O35: 1 | R35: 1 | V35: 4
A36: 27. | B36: 16.4 | C36: 23.2 | D36: 7.4 | E36: 6.7 | F36: 44 | G36: 71 | H36: 5.1 | I36: 0.3 | J36: R | L36: 8.5 | M36: 1016.3 | N36: 10.3 | O36: 1 | R36: 1 | V36: 5
A37: 28. | B37: 18.3 | C37: 25.8 | D37: 13 | E37: 11.7 | F37: 45 | G37: 74 | H37: 7 | I37: 1.1 | J37: R | L37: 4.6 | M37: 1012.1 | N37: 13.2 | O37: 1 | R37: 1 | S37: 1 | V37: 5
A38: 29. | B38: 16.5 | C38: 21.4 | D38: 12.9 | E38: 12.8 | F38: 66 | G38: 89 | H38: 7.5 | I38: 6.9 | J38: R | L38: 0.6 | M38: 1007.1 | N38: 14.6 | O38: 1 | R38: 1 | V38: 5
A39: 30. | B39: 14.6 | C39: 18.6 | D39: 11.9 | E39: 11.1 | F39: 64 | G39: 87 | H39: 6.2 | I39: 1.1 | J39: R | L39: 1.7 | M39: 1012.5 | N39: 12.3 | O39: 2 | R39: 1 | V39: 4
A40: Su | B40: =SUM(B30:B39) -> 150.6 | C40: =SUM(C30:C39) -> 201.4 | D40: =SUM(D30:D39) -> 109.1 | E40: =SUM(E30:E39) -> 103.4 | F40: XXX | G40: =SUM(G30:G39) -> 772 | H40: =SUM(H30:H39) -> 63.2 | I40: =SUM(I30:I39) -> 25.4 | J40: XX | L40: =SUM(L30:L39) -> 35 | M40: =SUM(M30:M39) -> 10145.8 | N40: =SUM(N30:N39) -> 107.4 | O40: =SUM(O30:O39) -> 14 | P40: =SUM(P30:P39) -> 0 | Q40: X | R40: =SUM(R30:R39) -> 8 | S40: =SUM(S30:S39) -> 2 | T40: =SUM(T30:T39) -> 0 | U40: =SUM(U30:U39) -> 0 | V40: XXX
A41: Mi | B41: =AVERAGE(B30:B39) -> 15.06 | C41: =AVERAGE(C30:C39) -> 20.14 | D41: =AVERAGE(D30:D39) -> 10.91 | E41: =AVERAGE(E30:E39) -> 10.34 | F41: XXX | G41: =AVERAGE(G30:G39) -> 77.2 | H41: =AVERAGE(H30:H39) -> 6.32 | I41: XXX | J41: XX | L41: XXX | M41: =AVERAGE(M30:M39) -> 1014.58 | N41: =AVERAGE(N30:N39) -> 10.74 | O41: =AVERAGE(O30:O39) -> 1.4 | P41: =ROUND(AVERAGE(P30:P39),1) ->  | Q41: X | R41: XX | S41: XX | T41: XX | U41: XX | V41: =AVERAGE(V30:V39) -> 4.5
A42: MSu | B42: =SUM(B16+B28+B40) -> 505.2 | C42: =SUM(C16+C28+C40) -> 671.5 | D42: =SUM(D16+D28+D40) -> 342.3 | E42: =SUM(E16+E28+E40) -> 318.5 | F42: XXX | G42: XXX, | H42: =SUM(H16+H28+H40) -> 153.9 | I42: =SUM(I16+I28+I40) -> 31.9 | J42: XX | L42: =SUM(L16+L28+L40) -> 216.8 | M42: =SUM(M16+M28+M40) -> 30497.4 | N42: =SUM(N16+N28+N40) -> 336.7 | O42: XXX | P42: =SUM(P16+P28+P40) -> 0 | Q42: X | R42: =SUM(R16+R28+R40) -> 13 | S42: =SUM(S16+S28+S40) -> 3 | T42: =SUM(T16+T28+T40) -> 0 | U42: =SUM(U16+U28+U40) -> 0 | V42: XXX
A43: MMi | B43: =AVERAGE(B6:B15,B18:B27,B30:B39) -> 16.84 | C43: =AVERAGE(C6:C15,C18:C27,C30:C39) -> 22.38333333 | D43: =AVERAGE(D6:D15,D18:D27,D30:D39) -> 11.41 | E43: =AVERAGE(E6:E15,E18:E27,E30:E39) -> 10.61666667 | F43: XXX | G43: =AVERAGE(G6:G15,G18:G27,G30:G39) -> 71.66666667 | H43: =AVERAGE(H6:H15,H18:H27,H30:H39) -> 5.13 | I43: XXXXX | J43: XX | L43: XXXX | M43: =AVERAGE(M6:M15,M18:M27,M30:M39) -> 1016.58 | N43: =AVERAGE(N6:N15,N18:N27,N30:N39) -> 11.22333333 | O43: =AVERAGE(O6:O15,O18:O27,O30:O39) -> 1.4 | P43: =ROUND(AVERAGE(P6:P15,P18:P27,P30:P39),1) ->  | Q43: X | R43: XX | S43: XX | T43: XX | U43: XX | V43: =AVERAGE(V17,V29,V41) -> 4.333333333
B45: Norm | C45: % v N.- | D45: Abw. | E45: Zahl der Tage | L45: Niederschlag mm | P45: Sonnensch.-dauer Std
B46: wert | C46: wert | D46: K | E46: Max.d.Lufttemp.°C | L46: >/= 0,1 | O46: =SUM(AE7:AE9) -> 13 | P46: ohne Sonne | V46: 0
A47: TTT | B47: 16.7 | C47: XXXX | D47: =SUM(B43-B47) -> 0.14 | E47: Tropentag/Hitzetag | I47: =SUM(AA7:AA9) -> 3 | L47: >/= 1,0 | O47: =SUM(AF7:AF9) -> 6 | P47: 0,1 bis 0,9 | V47: 3
A48: RRR | B48: 61 | C48: =SUM(I42*100/B48) -> 52.29508197 | D48: XXXX | E48: Sommertag | I48: =SUM(AB7:AB9) -> 6 | L48: >/= 3,0 | O48: =SUM(AG7:AG9) -> 3 | P48: >/= 10,0 | V48: =SUM(AC17:AC19) -> 8
A49: sss | B49: 202 | C49: =SUM(L42*100/B49) -> 107.3267327 | D49: XXXX | E49: Eistag | I49: =SUM(AC7:AC9) -> 0 | L49: >/=10,0 | O49: =SUM(AH7:AH9) -> 1 | P49: Schneedecke cm
A50: astr. | D50: XXXX | E50: Polartag | I50: 0 | L50: >/= 20,0 | O50: =SUM(AI7,AI9) -> 0 | P50: >/= 1 | V50: =SUM(AE17:AE19) -> 0
A51: mgl. | B51: 486 | C51: =SUM(L42*100/B51) -> 44.6090535 | D51: XXXX | E51: Min.d.Lufttemp.°C | L51: Rel. Luftfeuchte 14 Uhr | P51: >/= 3 | V51: =SUM(AF17:AF19) -> 0
A52: sss | D52: XXXX | E52: Frosttag | I52: =SUM(AA12:AA14) -> 0 | L52: >/=70% | O52: =SUM(AE12:AE14) -> 1 | P52: >/= 10 | V52: =SUM(AG17:AG19) -> 0
E53: Tropennacht | I53: 0 | L53: </=40% | O53: =SUM(AG12:AG14) -> 9
E56: Unter "Tage mit" sind die Angaben Bft 6 & Bft 8 nicht 10 min. - Mittel sonder 2,5 s - Werte.
E57: Wenn ein Wert auch mit einem 10 min. - Wert erreicht wird, erfolgt eine rote Markierung.
E58: Dies gilt rückwirkend auf November 2012.
F112: Tage mit Bft 6 /8 eigentlich in 10 min. - Mittel

Sheet Sichtst.
E1: Sichtweitenstatistik
B5: Wetterstation: Köttewitz | F5: Monat: | G5: Juni | K5: Jahr: | L5: 2014
A7: Dat. | B7: Nebeldauer | C7: Nebel | D7: Dunst | E7: Sicht | F7: Sicht | G7: Sicht | H7: Sicht
B8: in St. u. Min. | E8: mittel | F8: normal | G8: gut | H8: sehr gut
A9: 01. | B9: - | C9: - | D9: - | E9: - | F9: 1 | G9: 1 | H9: - | N9: =IF(ISNUMBER(B9),B9*24," ") ->  | O9: =IF(ISNUMBER(N9),IF(N9<1,1," ")," ") ->  | P9: =IF(ISNUMBER(N9),IF(N9<8,2," ")," ") ->  | Q9: =IF(ISNUMBER(N9),IF(N9<24,3," ")," ") ->  | R9: =MIN(O9:Q9) -> 0
A10: 02. | B10: - | C10: =IF(R10=1,1,"-") -> - | D10: - | E10: - | F10: 1 | G10: 1 | H10: - | R10: 0
A11: 03. | B11: - | C11: - | D11: - | E11: - | F11: 1 | G11: 1 | H11: - | R11: 0
A12: 04. | B12: - | C12: - | D12: - | E12: - | F12: 1 | G12: 1 | H12: - | R12: 0
A13: 05. | B13: - | C13: - | D13: - | E13: - | F13: 1 | G13: 1 | H13: 1 | R13: 0
A14: 06. | B14: - | C14: - | D14: - | E14: - | F14: - | G14: 1 | H14: 1 | R14: 0
A15: 07. | B15: - | C15: - | D15: - | E15: - | F15: 1 | G15: 1 | H15: - | R15: 0
A16: 08. | B16: - | C16: - | D16: - | E16: - | F16: 1 | G16: - | H16: - | R16: 0
A17: 09. | B17: - | C17: - | D17: - | E17: - | F17: 1 | G17: - | H17: - | R17: 0
A18: 10. | B18: - | C18: - | D18: - | E18: - | F18: 1 | G18: 1 | H18: - | R18: 0
A19: 11. | B19: - | C19: - | D19: - | E19: 1 | F19: 1 | G19: - | H19: - | R19: 0
A20: 12. | B20: - | C20: - | D20: - | E20: - | F20: 1 | G20: 1 | H20: - | R20: 0
A21: 13. | B21: - | C21: - | D21: - | E21: - | F21: 1 | G21: 1 | H21: - | R21: 0
A22: 14. | B22: - | C22: - | D22: - | E22: - | F22: 1 | G22: - | H22: - | R22: 0
A23: 15. | B23: - | C23: - | D23: - | E23: - | F23: 1 | G23: 1 | H23: - | R23: 0
A24: 16. | B24: - | C24: - | D24: - | E24: - | F24: 1 | G24: 1 | H24: - | R24: 0
A25: 17. | B25: - | C25: - | D25: - | E25: - | F25: 1 | G25: - | H25: - | R25: 0
A26: 18. | B26: - | C26: - | D26: - | E26: - | F26: 1 | G26: 1 | H26: - | R26: 0
A27: 19. | B27: - | C27: - | D27: - | E27: - | F27: 1 | G27: - | H27: - | R27: 0
A28: 20. | B28: - | C28: - | D28: - | E28: 1 | F28: 1 | G28: 1 | H28: - | R28: 0
A29: 21. | B29: - | C29: - | D29: - | E29: - | F29: 1 | G29: 1 | H29: - | R29: 0
A30: 22. | B30: - | C30: - | D30: - | E30: - | F30: 1 | G30: 1 | H30: - | R30: 0
A31: 23. | B31: - | C31: - | D31: - | E31: - | F31: 1 | G31: 1 | H31: - | R31: 0
A32: 24. | B32: - | C32: - | D32: - | E32: - | F32: 1 | G32: - | H32: - | R32: 0
A33: 25. | B33: - | C33: - | D33: 1 | E33: 1 | F33: 1 | G33: - | H33: - | R33: 0
A34: 26. | B34: - | C34: - | D34: - | E34: 1 | F34: 1 | G34: - | H34: - | R34: 0
A35: 27. | B35: - | C35: - | D35: - | E35: - | F35: 1 | G35: - | H35: - | R35: 0
A36: 28. | B36: - | C36: - | D36: - | E36: - | F36: 1 | G36: 1 | H36: -
A37: 29. | B37: - | C37: - | D37: - | E37: 1 | F37: 1 | G37: - | H37: -
A38: 30. | B38: - | C38: - | D38: - | E38: - | F38: 1 | G38: 1 | H38: -
A39: Su. | B39: =SUM(B9:B38) -> 00:00:00 | C39: 0 | D39: 1 | E39: 5 | F39: 29 | G39: 19 | H39: 2
B41: Anzahl der Nebeltage : | E41: =SUM(C39) -> 0
B42: Anzahl der Tage Sicht >= 50 km : | E42: =SUM(G39) -> 19

Sheet Monatsdiagramm
A1: Klimadiagramm | C1: Wetterstation Köttewitz | I1: (213 m ü. NHN)
A3: Juni 2014
C5: aktuell | D5: langj. Mittel | E5: Abw. vom lj. Mittel
B6: höchste Temperatur (°C): | C6: =MAX('Daten für Diagr.'!C2:C31) -> 32.6 | D6: am | E6: 2014-06-09
B7: mittlere Temperatur (°C): | C7: ='Daten für Diagr.'!B32 -> 16.84 | D7: =Kurztabelle!B47 -> 16.7 | E7: =C7-D7 -> 0.14 | F7: K
B8: tiefste Temperatur (°C): | C8: =MIN('Daten für Diagr.'!D2:D31) -> 6.3 | D8: am | E8: 2014-06-02
B9: Niederschlagshöhe (mm): | C9: =Kurztabelle!I42 -> 31.9 | D9: =Kurztabelle!B48 -> 61 | E9: =100/D9*C9 -> 52.29508197 | F9: %
B10: Sonnenscheindauer (Std.)*: | C10: =Kurztabelle!L42 -> 216.8 | D10: =Kurztabelle!B49 -> 202 | E10: =100/D10*C10 -> 107.3267327 | F10: %
A66: *Die Wetterstation kann, durch geographische Hindernisse, nicht die maximal mögliche Sonnenscheindauer aufzeichnen. Es gilt ein Übergangsprozentsatz von: Dez 30 %; Okt/Nov & Jan/Feb 40 %; Mär 65 %; Apr & Sep 80 %; Mai - August 90 %.
A67: Diese Werte entsprechend annähernd 100 % (Normalwert Köttewitz). Nach 10 Jahren erfolgt die Umstellung des Prozentsatzes nach der örtlichen Aufzeichnung.

Sheet Daten für Diagr.
B1: Td | C1: Tmax | D1: Tmin | E1: RR | F1: Schnee | G1: Sonne | H1: Luftdr. | I1: MWT | J1: GWL | K1: Name | L1: Sonstiges
A2: 2014-06-01 | B2: 14.2 | C2: 20.7 | D2: 8.9 | G2: 10.3 | H2: 1019.6 | I2: 15.75
A3: 2014-06-02 | B3: 14.2 | C3: 20.4 | D3: 6.3 | G3: 9.7 | H3: 1018.5 | I3: 15.85 | J3: TrW | K3: T Dena
A4: 2014-06-03 | B4: 15.9 | C4: 20.7 | D4: 10.8 | G4: 12.8 | H4: 1014.9 | I4: 15.95
A5: 2014-06-04 | B5: 16.9 | C5: 23.9 | D5: 9.9 | E5: 0.2 | G5: 8.9 | H5: 1010 | I5: 16.05 | J5: Wz | L5: Von 14:41 Uhr - 14:54 Uhr leichter Regenschauer (WW 80).
A6: 2014-06-05 | B6: 16.6 | C6: 20.6 | D6: 10.2 | G6: 6 | H6: 1013 | I6: 16.15 | L6: Gegen 05:00 Uhr leichter Regen (WW 61).
A7: 2014-06-06 | B7: 17.1 | C7: 24.1 | D7: 7.6 | G7: 12 | H7: 1018.7 | I7: 16.25 | J7: Sa | K7: H Wolfgang
A8: 2014-06-07 | B8: 21.5 | C8: 28.9 | D8: 12.2 | G8: 14.4 | H8: 1017.2 | I8: 16.35 | L8: Leicht schwül.
A9: 2014-06-08 | B9: 24.4 | C9: 32.2 | D9: 16.3 | G9: 14.5 | H9: 1018.5 | I9: 16.4 | J9: SWa | L9: Stark schwül.
A10: 2014-06-09 | B10: 24.9 | C10: 32.6 | D10: 17 | G10: 14.5 | H10: 1018 | I10: 16.5 | L10: Extrem schwül.
A11: 2014-06-10 | B11: 24.5 | C11: 32.1 | D11: 16.9 | G11: 14.4 | H11: 1017.7 | I11: 16.6 | L11: Extrem schwül.
A12: 2014-06-11 | B12: 22.5 | C12: 29.6 | D12: 17.9 | E12: 0.4 | G12: 9 | H12: 1020.7 | I12: 16.65 | J12: Wa | K12: H Xerxes | L12: Gegen 11:00 Uhr leichtes Gewitter mit Regen (WW 97). Extrem schwül.
A13: 2014-06-12 | B13: 19.4 | C13: 23.6 | D13: 13.5 | G13: 9.8 | H13: 1023.6 | I13: 16.75 | L13: Leicht schwül.
A14: 2014-06-13 | B14: 15.7 | C14: 21.1 | D14: 11.3 | E14: 0.3 | G14: 4.9 | H14: 1018.7 | I14: 16.7 | J14: NWa | L14: Gegen 11:00 Uhr irisierende Wolke (Cc).
A15: 2014-06-14 | B15: 13.8 | C15: 18.4 | D15: 12.1 | E15: 4.2 | G15: 2.6 | H15: 1016.8 | I15: 16.8 | L15: Von 12:20 Uhr - 12:59 Uhr; 15:50 Uhr - 16:19 Uhr starker Regenschauer (WW 81). Von 10:30 Uhr - 10:59 Uhr; 16:20 Uhr - 16:59 Uhr leichter Regenschauer (WW 80).
A16: 2014-06-15 | B16: 14.5 | C16: 18.8 | D16: 8.9 | G16: 6.2 | H16: 1020.6 | I16: 16.85
A17: 2014-06-16 | B17: 15.6 | C17: 21.9 | D17: 7.2 | G17: 7.2 | H17: 1018.7 | I17: 16.9 | J17: Nz | K17: T Frederike | L17: Beginn der Himbeerernte.
A18: 2014-06-17 | B18: 16 | C18: 20.9 | D18: 11.3 | G18: 5 | H18: 1018.9 | I18: 17 | J18: NWa | K18: H Xerxes
A19: 2014-06-18 | B19: 17.7 | C19: 24.3 | D19: 9.2 | G19: 14.2 | H19: 1018.6 | I19: 17.05
A20: 2014-06-19 | B20: 15.3 | C20: 17.8 | D20: 12.7 | G20: 2.7 | H20: 1015.3 | I20: 17.1 | J20: NWz | K20: T Gisela
A21: 2014-06-20 | B21: 13.9 | C21: 17.5 | D21: 12.1 | E21: 1.4 | G21: 2.7 | H21: 1013.6 | I21: 17.15 | L21: Von 12:00 Uhr - 12:29 Uhr starker Regenschauer (WW 81). Von 12:30 Uhr - 12:39 Uhr leichter Regenschauer (WW 80).
A22: 2014-06-21 | B22: 13.9 | C22: 16.3 | D22: 11.6 | E22: 0.5 | G22: 0.5 | H22: 1016.1 | I22: 17.2 | K22: T Hildegunde
A23: 2014-06-22 | B23: 15.1 | C23: 19 | D23: 11.9 | G23: 1.6 | H23: 1017.5 | I23: 17.25 | L23: Zwischen 03:00 Uhr - 06:59 Uhr leichte Regenschauer (WW 80).
A24: 2014-06-23 | B24: 14.9 | C24: 19.8 | D24: 10.2 | G24: 6.5 | H24: 1019.9 | I24: 17.3 | L24: Beginn der Gelbreife Gerste.
A25: 2014-06-24 | B25: 15.2 | C25: 21.3 | D25: 9.6 | G25: 8.2 | H25: 1016.3 | I25: 17.35 | J25: TM | K25: T Imelda
A26: 2014-06-25 | B26: 12.4 | C26: 15.7 | D26: 11.3 | E26: 15 | G26: 0.5 | H26: 1011.8 | I26: 17.4 | L26: 10:55 Uhr leichtes Gewitter mit Regen (WW 95). Von 11:35 Uhr - 12:39 Uhr; 18:40 Uhr - 19:39 Uhr starker Regenschauer (WW 81). Von 08:10 Uhr - 08:29 Uhr; 11:10 Uhr - 11:34 Uhr; 12:40 Uhr - 12:59 Uhr; 17:20 Uhr - 18:19 Uhr; 19:40 Uhr - 19:59 Uhr mäßiger Regenschauer (WW 81). Von 10:40 Uhr - 11:09 Uhr; 20:00 Uhr - 20:09 Uhr; 21:50 Uhr - 21:59 Uhr leichter Regenschauer (WW 80).
A27: 2014-06-26 | B27: 13.3 | C27: 20.3 | D27: 9.3 | E27: 0.4 | G27: 2.3 | H27: 1016.2 | I27: 17.45 | L27: Zwischen 18:00 Uhr - 19:59 Uhr leichter Regenschauer (WW 80).
A28: 2014-06-27 | B28: 16.4 | C28: 23.2 | D28: 7.4 | E28: 0.3 | G28: 8.5 | H28: 1016.3 | I28: 17.5 | J28: Ws | K28: T Jutta | L28: Beginn der Gelbreife Roggen.
A29: 2014-06-28 | B29: 18.3 | C29: 25.8 | D29: 13 | E29: 1.1 | G29: 4.6 | H29: 1012.1 | I29: 17.55 | J29: SWz | K29: T Kristina | L29: Gegen 20:00 Uhr und 22:00 Uhr leichter Regenschauer (WW 80).Gegen 13:15 Uhr Ferngewitter (WW 17) aus S nach NO. Leicht schwül.
A30: 2014-06-29 | B30: 16.5 | C30: 21.4 | D30: 12.9 | E30: 6.9 | G30: 0.6 | H30: 1007.1 | I30: 17.6 | L30: Von 15:50 Uhr - 16:19 Uhr starker Regenschauer (WW 81). Von 02:20 Uhr - 02:49 Uhr mäßiger Regenschauer (WW 81). Von 12:00 Uhr - 13:39 Uhr mäßiger Regen (WW 63). Von 10:30 Uhr - 11:59 Uhr; 13:40 Uhr - 13:49 Uhr; 15:30 Uhr - 15:49 Uhr; 16:20 Uhr - 17:59 Uhr leichter Regen (WW 61). Von 13:50 Uhr - 15:29 Uhr leichter Regen unterbrochen (WW 60).
A31: 2014-06-30 | B31: 14.6 | C31: 18.6 | D31: 11.9 | E31: 1.1 | G31: 1.7 | H31: 1012.5 | I31: 17.65 | J31: Wz | K31: T Jutta | L31: Von 12:10 Uhr - 12:29 Uhr starker Regenschauer (WW 81).
A32: Durchschnitt | B32: =AVERAGE(B2:B31) -> 16.84 | C32: =AVERAGE(C2:C31) -> 22.38333333 | D32: =AVERAGE(D2:D31) -> 11.38 | E32: - | G32: =AVERAGE(G2:G31) -> 7.226666667 | H32: =AVERAGE(H2:H31) -> 1016.58 | I32: =AVERAGE(I2:I31) -> 16.835
A33: Mittel | B33: 16.7 | E33: 61 | F33: - | G33: 202 | H33: 1015.6
A89: 1
A90: 2
A91: 3
A92: 4
A93: 5
A94: 6
A95: 7
A96: 8
A97: 9
A98: 10
A99: 11
A100: 12
A101: 13
A102: 14
A103: 15
A104: 16
A105: 17
A106: 18
A107: 19
A108: 20
A109: 21
A110: 22
A111: 23
A112: 24
A113: 25
A114: 26
A115: 27
A116: 28
A117: 29
A118: 30
A119: 31

Sheet Erdbodentem.
E1: Erdbodentemperatur
B5: Wetterstation: Köttewitz | F5: Monat: | G5: Juni | K5: Jahr: | L5: 2014
A7: Dat. | B7: 6 Uhr | C7: 7 Uhr | D7: 11 Uh | E7: 12 Uhr | F7: 19 Uhr | H7: NN | I7: 15 °C -
I8: Eindringtiefe
A9: 01. | B9: - | D9: - | F9: 21,4 °C/20,4 °C/17,4 °C | H9: n | I9: > 1 m
A10: 02. | B10: 13,7 °C/15,0 °C/16,2 °C | D10: - | F10: 21,7 °C/20,0 °C/16,0 °C | H10: n | I10: Ab 10 cm
A11: 03. | B11: - | D11: - | F11: 23,8 °C/22,2 °C/16,4 °C | H11: n | I11: > 1 m
A12: 04. | B12: - | D12: - | F12: 23,7 °C/22,2 °C/17,0 °C | H12: n | I12: > 1 m
A13: 05. | B13: - | D13: - | F13: - | H13: - | I13: > 1 m
A14: 06. | B14: 14,5 °C/17,0 °C/17,5 °C | D14: - | F14: - | H14: n | I14: Ab 6 cm
A15: 07. | B15: - | D15: 26,1 °C/22,0 °C/17,7 °C | F15: 27,7 °C/25,4 °C/17,7 °C | H15: n | I15: > 1 m
A16: 08. | B16: 18,8 °C/19,8 °C/18,5 °C | D16: 27,1 °C/21,9 °C/18,5 °C | F16: 30,4 °C/25,4 °C/18,8 °C | H16: n | I16: > 1 m
A17: 09. | B17: 20,1 °C/21,3 °C/19,4 °C | D17: 29,0 °C/22,3 °C/19,4 °C | F17: 31,3 °C/28,4 °C/19,5 °C | H17: h | I17: > 1 m
A18: 10. | B18: 20,8 °C/22,2 °C/20,4 °C | D18: - | F18: 31,8 °C/29,8 °C/20,4 °C | H18: n | I18: > 1 m
A19: 11. | B19: 22,0 °C/23,4 °C/ 20,8 °C | D19: - | F19: - | H19: n | I19: > 1 m
A20: 12. | B20: - | D20: - | F20: 30,0 °C/27,9 °C/20,7 °C | H20: n | I20: > 1 m
A21: 13. | B21: 18,7 °C/20,4 °C/21,1 °C | D21: - | F21: - | H21: n | I21: > 1 m
A22: 14. | B22: 18,4 °C/19,6 °C/20,3 °C | D22: - | F22: - | H22: t | I22: > 1 m
A23: 15. | B23: 15,8 °C/17,2 °C/19,3 °C | D23: - | F23: - | H23: n | I23: > 1 m
A24: 16. | B24: 13,6 °C/16,3 °C/18,4 °C | D24: - | F24: - | H24: n | I24: Ab 8 cm
A25: 17. | B25: 16,9 °C/17,0°C/18,4 °C | D25: - | F25: 24,2 °C/22,7 °C/18,4 °C | H25: n | I25: > 1 m
A26: 18. | B26: - | D26: - | F26: 28,2 °C/27,6 °C/19,4 °C | H26: n | I26: > 1 m
A27: 19. | B27: 18,3 °C/20,2 °C/19,4 °C | D27: - | F27: - | H27: t | I27: > 1 m
A28: 20. | B28: 17,0 °C/18,2 °C/19,5 °C | D28: - | F28: 21,0 °C/20,5 °C/18,4 °C | H28: t | I28: > 1 m
A29: 21. | B29: 16,2 °C/17,0 °C/18,3 °C | D29: - | F29: - | H29: t | I29: > 1 m
A30: 22. | B30: 16,0 °C/17,0 °C/17,9 °C | D30: - | F30: - | H30: n | I30: > 1 m
A31: 23. | B31: - | D31: - | F31: - | H31: - | I31: -
A32: 24. | B32: - | D32: - | F32: - | H32: - | I32: -
A33: 25. | B33: - | D33: - | F33: - | H33: - | I33: -
A34: 26. | B34: - | D34: - | F34: - | H34: - | I34: -
A35: 27. | B35: - | D35: - | F35: - | H35: - | I35: -
A36: 28. | B36: 16,0 °C/17,0 °C/18,7 °C | D36: - | F36: - | H36: t | I36: > 1 m
A37: 29. | B37: 17,4 °C/17,8 °C/18,3 °C | D37: - | F37: 19,2 °C/19,4 °C/18,4 °C | H37: t | I37: > 1 m
A38: 30. | B38: 16,0 °C/17,0 °C/18,8 °C | D38: - | F38: - | H38: n | I38: > 1 m
B40: Temperatur - 10 cm/Temperatur - 20 cm/Temperatur -50 cm
